[Event "Kvibergspelen 2022"]
[Site "Kviberg Park Hotel & Conference, Krutvagen 2, Gothenburg, Sweden"]
[Date "2022.10.01"]
[Round "6.13"]
[White "Eriksson, Wilmer"]
[Black "Johannsson, Birkir Isak"]
[Result "0-1"]
[TimeControl "15 minutes + 5 seconds per move from move one (Round 1 - 4) / 90 minutes + 30 seconds per move from move one (Round 5 - 8)"]
[WhiteFideId "1768298"]
[BlackFideId "2314673"]
[WhiteElo "1752"]
[BlackElo "2165"]

1. e4 {[%clk 01:30:58]} {[%emt 00:00:01]} c5 {[%clk 01:30:16]} {[%emt
00:00:44]} 2. Nf3 {[%clk 01:31:21]} {[%emt 00:00:07]} d6 {[%clk 01:30:40]}
{[%emt 00:00:06]} 3. d4 {[%clk 01:31:49]} {[%emt 00:00:02]} cxd4 {[%clk
01:30:57]} {[%emt 00:00:14]} 4. Nxd4 {[%clk 01:32:17]} {[%emt 00:00:02]} Nf6
{[%clk 01:31:12]} {[%emt 00:00:14]} 5. Nc3 {[%clk 01:32:46]} {[%emt 00:00:02]}
a6 {[%clk 01:31:28]} {[%emt 00:00:14]} 6. f3 {[%clk 01:33:08]} {[%emt
00:00:08]} e6 {[%clk 01:31:51]} {[%emt 00:00:07]} 7. Be3 {[%clk 01:33:34]}
{[%emt 00:00:04]} h5 {[%clk 01:32:14]} {[%emt 00:00:06]} 8. Qd2 {[%clk
01:33:31]} {[%emt 00:00:33]} Be7 {[%clk 01:32:38]} {[%emt 00:00:07]} 9. O-O-O
{[%clk 01:33:11]} {[%emt 00:00:50]} b5 {[%clk 01:32:56]} {[%emt 00:00:11]} 10.
a3 {[%clk 01:32:40]} {[%emt 00:01:02]} Bb7 {[%clk 01:33:11]} {[%emt 00:00:15]}
11. Kb1 {[%clk 01:29:43]} {[%emt 00:03:27]} Nbd7 {[%clk 01:32:58]} {[%emt
00:00:43]} 12. Be2 {[%clk 01:29:15]} {[%emt 00:00:58]} Rc8 {[%clk 01:32:56]}
{[%emt 00:00:32]} 13. Rhg1 {[%clk 01:24:14]} {[%emt 00:05:31]} Qc7 {[%clk
01:19:49]} {[%emt 00:13:37]} 14. h3 {[%clk 01:17:54]} {[%emt 00:06:50]} h4
{[%clk 01:19:19]} {[%emt 00:01:01]} 15. Bg5 {[%clk 01:08:15]} {[%emt 00:10:08]}
Nf8 {[%clk 01:06:13]} {[%emt 00:13:35]} 16. Bxf6 {[%clk 00:54:44]} {[%emt
00:14:31]} gxf6 {[%clk 01:05:06]} {[%emt 00:02:08]} 17. f4 {[%clk 00:53:16]}
{[%emt 00:01:59]} Nd7 {[%clk 01:00:35]} {[%emt 00:05:01]} 18. f5 {[%clk
00:51:01]} {[%emt 00:02:44]} e5 {[%clk 01:01:00]} {[%emt 00:00:06]} 19. Nb3
{[%clk 00:47:54]} {[%emt 00:03:36]} Nb6 {[%clk 01:00:05]} {[%emt 00:01:25]} 20.
Na5 {[%clk 00:40:31]} {[%emt 00:07:53]} Ba8 {[%clk 00:58:59]} {[%emt 00:01:36]}
21. Rge1 {[%clk 00:39:24]} {[%emt 00:01:37]} Qc5 {[%clk 00:53:21]} {[%emt
00:06:07]} 22. Bf3 {[%clk 00:34:50]} {[%emt 00:05:05]} b4 {[%clk 00:46:15]}
{[%emt 00:07:37]} 23. axb4 {[%clk 00:35:05]} {[%emt 00:00:14]} Qxb4 {[%clk
00:46:37]} {[%emt 00:00:08]} 24. Nd5 {[%clk 00:35:02]} {[%emt 00:00:33]} Qxd2
{[%clk 00:43:41]} {[%emt 00:03:26]} 25. Rxd2 {[%clk 00:35:30]} {[%emt
00:00:02]} Bd8 {[%clk 00:42:39]} {[%emt 00:01:32]} 26. Nxb6 {[%clk 00:27:10]}
{[%emt 00:08:49]} Bxb6 {[%clk 00:43:01]} {[%emt 00:00:08]} 27. Nb3 {[%clk
00:27:35]} {[%emt 00:00:04]} Ke7 {[%clk 00:41:52]} {[%emt 00:01:40]} 28. Red1
{[%clk 00:27:16]} {[%emt 00:00:49]} Rhd8 {[%clk 00:41:38]} {[%emt 00:00:44]} 29.
c3 {[%clk 00:24:26]} {[%emt 00:03:20]} a5 {[%clk 00:40:39]} {[%emt 00:01:29]}
30. Na1 {[%clk 00:22:54]} {[%emt 00:02:03]} Rc4 {[%clk 00:39:01]} {[%emt
00:02:08]} 31. Re1 {[%clk 00:22:24]} {[%emt 00:01:00]} Rb8 {[%clk 00:36:28]}
{[%emt 00:03:03]} 32. Kc1 {[%clk 00:20:09]} {[%emt 00:02:46]} a4 {[%clk
00:29:49]} {[%emt 00:07:09]} 33. Nc2 {[%clk 00:19:35]} {[%emt 00:01:03]} Bc5
{[%clk 00:28:15]} {[%emt 00:02:04]} 34. Ne3 {[%clk 00:17:23]} {[%emt 00:02:42]}
Bxe3 {[%clk 00:28:26]} {[%emt 00:00:19]} 35. Rxe3 {[%clk 00:17:52]} {[%emt
00:00:01]} a3 {[%clk 00:27:51]} {[%emt 00:01:06]} 36. bxa3 {[%clk 00:16:41]}
{[%emt 00:01:41]} Rb3 {[%clk 00:27:52]} {[%emt 00:00:28]} 37. Ra2 {[%clk
00:14:36]} {[%emt 00:02:35]} Ra4 {[%clk 00:23:29]} {[%emt 00:04:53]} 38. Kc2
{[%clk 00:14:18]} {[%emt 00:00:47]} Rbxa3 {[%clk 00:23:44]} {[%emt 00:00:16]}
39. Rxa3 {[%clk 00:14:43]} {[%emt 00:00:05]} Rxa3 {[%clk 00:24:11]} {[%emt
00:00:02]} 40. Kb2 {[%clk 00:14:12]} {[%emt 00:01:01]} Ra4 {[%clk 00:23:47]}
{[%emt 00:00:54]} 41. Kb3 {[%clk 00:13:08]} {[%emt 00:01:35]} Ra1 {[%clk
00:23:44]} {[%emt 00:00:32]} 42. Re2 {[%clk 00:12:20]} {[%emt 00:01:18]} Bc6
{[%clk 00:22:52]} {[%emt 00:01:22]} 43. Ra2 {[%clk 00:08:02]} {[%emt 00:04:50]}
Re1 {[%clk 00:21:16]} {[%emt 00:02:04]} 44. Ra7+ {[%clk 00:08:03]} {[%emt
00:00:29]} Ke8 {[%clk 00:20:41]} {[%emt 00:01:05]} 45. Ra6 {[%clk 00:08:02]}
{[%emt 00:00:31]} Bxe4 {[%clk 00:20:30]} {[%emt 00:00:41]} 46. Bxe4 {[%clk
00:08:06]} {[%emt 00:00:27]} Rxe4 {[%clk 00:20:58]} {[%emt 00:00:02]} 47. Rxd6
{[%clk 00:08:26]} {[%emt 00:00:09]} Ke7 {[%clk 00:20:27]} {[%emt 00:01:00]} 48.
Rd2 {[%clk 00:08:48]} {[%emt 00:00:09]} Rf4 {[%clk 00:12:25]} {[%emt 00:08:33]}
49. c4 {[%clk 00:07:18]} {[%emt 00:02:00]} Rxf5 {[%clk 00:12:26]} {[%emt
00:00:27]} 50. c5 {[%clk 00:07:07]} {[%emt 00:00:41]} Rf1 {[%clk 00:07:58]}
{[%emt 00:04:58]} 51. Kc4 {[%clk 00:05:08]} {[%emt 00:02:30]} e4 {[%clk
00:07:30]} {[%emt 00:00:58]} 52. c6 {[%clk 00:03:05]} {[%emt 00:02:34]} Rc1+
{[%clk 00:07:16]} {[%emt 00:00:44]} 53. Kd5 {[%clk 00:01:03]} {[%emt 00:02:32]}
f5 {[%clk 00:06:37]} {[%emt 00:01:10]} 54. c7 {[%clk 00:00:32]} {[%emt
00:01:02]} Rxc7 {[%clk 00:05:48]} {[%emt 00:01:19]} 55. Ke5 {[%clk 00:00:32]}
{[%emt 00:00:30]} Rc5+ {[%clk 00:05:47]} {[%emt 00:00:30]} 56. Kf4 {[%clk
00:01:01]} Ke6 {[%clk 00:04:59]} {[%emt 00:01:18]} 57. Kg5 {[%clk 00:00:34]}
{[%emt 00:00:58]} Ke5 {[%clk 00:05:02]} {[%emt 00:00:27]} 58. Kxh4 {[%clk
00:00:48]} {[%emt 00:00:17]} f4 {[%clk 00:05:12]} {[%emt 00:00:19]} 59. Rd8
{[%clk 00:00:40]} {[%emt 00:00:39]} Rc2 {[%clk 00:04:56]} {[%emt 00:00:45]} 60.
Re8+ {[%clk 00:00:51]} {[%emt 00:00:19]} Kf5 {[%clk 00:04:52]} {[%emt
00:00:35]} 61. g4+ {[%clk 00:01:09]} {[%emt 00:00:12]} fxg3 {[%clk 00:04:51]}
{[%emt 00:00:30]} 62. Kxg3 {[%clk 00:01:33]} {[%emt 00:00:07]} Rc3+ {[%clk
00:05:08]} {[%emt 00:00:13]} 63. Kg2 {[%clk 00:00:57]} {[%emt 00:01:06]} Kf4
{[%clk 00:05:32]} {[%emt 00:00:04]} 64. h4 {[%clk 00:00:47]} {[%emt 00:00:42]}
f5 {[%clk 00:05:46]} {[%emt 00:00:16]} 65. Rg8 {[%clk 00:00:38]} {[%emt
00:00:39]} Rc2+ {[%clk 00:05:28]} {[%emt 00:00:49]} 66. Kg1 {[%clk 00:00:53]}
{[%emt 00:00:14]} Kf3 {[%clk 00:05:36]} {[%emt 00:00:21]} 67. h5 {[%clk
00:01:13]} {[%emt 00:00:12]} e3 {[%clk 00:05:08]} {[%emt 00:00:57]} 68. h6
{[%clk 00:00:34]} {[%emt 00:01:10]} e2 {[%clk 00:04:57]} {[%emt 00:00:40]} 69.
Re8 {[%clk 00:00:38]} {[%emt 00:00:26]} Rc1+ {[%clk 00:05:03]} {[%emt
00:00:24]} 70. Kh2 {[%clk 00:00:32]} {[%emt 00:00:35]} e1=Q {[%clk 00:05:09]}
{[%emt 00:00:25]} 0-1

[Event "Kvibergspelen 2022"]
[Site "Kviberg Park Hotel & Conference, Krutvagen 2, Gothenburg, Sweden"]
[Date "2022.10.01"]
[Round "6.14"]
[White "Ulff, Johan"]
[Black "Fransson, Lennart"]
[Result "1-0"]
[TimeControl "15 minutes + 5 seconds per move from move one (Round 1 - 4) / 90 minutes + 30 seconds per move from move one (Round 5 - 8)"]
[WhiteFideId "1733893"]
[BlackFideId "1706756"]
[WhiteElo "2132"]
[BlackElo "1921"]

1. d4 {[%clk 01:30:57]} {[%emt 00:00:02]} Nf6 {[%clk 01:29:44]} {[%emt
00:01:16]} 2. Bf4 {[%clk 01:30:30]} {[%emt 00:00:57]} g6 {[%clk 01:30:04]}
{[%emt 00:00:10]} 3. e3 {[%clk 01:30:53]} {[%emt 00:00:08]} Bg7 {[%clk
01:30:16]} {[%emt 00:00:18]} 4. Be2 {[%clk 01:31:13]} {[%emt 00:00:11]} O-O
{[%clk 01:30:13]} {[%emt 00:00:31]} 5. h4 {[%clk 01:30:24]} {[%emt 00:01:19]}
d6 {[%clk 01:28:16]} {[%emt 00:02:26]} 6. h5 {[%clk 01:29:24]} {[%emt
00:01:31]} Nc6 {[%clk 01:27:24]} {[%emt 00:01:22]} 7. h6 {[%clk 01:28:25]}
{[%emt 00:01:30]} Bh8 {[%clk 01:27:45]} {[%emt 00:00:09]} 8. c3 {[%clk
01:21:49]} {[%emt 00:07:07]} Rb8 {[%clk 01:23:48]} {[%emt 00:04:26]} 9. Nf3
{[%clk 01:13:13]} {[%emt 00:09:06]} Qe8 {[%clk 01:18:38]} {[%emt 00:05:40]} 10.
Nbd2 {[%clk 01:06:37]} {[%emt 00:07:06]} e5 {[%clk 01:15:00]} {[%emt 00:04:07]}
11. dxe5 {[%clk 00:57:08]} {[%emt 00:10:00]} dxe5 {[%clk 01:13:53]} {[%emt
00:01:36]} 12. Bg3 {[%clk 00:53:48]} {[%emt 00:03:50]} e4 {[%clk 01:13:01]}
{[%emt 00:01:21]} 13. Ng5 {[%clk 00:52:27]} {[%emt 00:01:52]} Qe7 {[%clk
01:13:02]} {[%emt 00:00:28]} 14. Qa4 {[%clk 00:44:37]} {[%emt 00:08:21]} Bf5
{[%clk 01:04:38]} {[%emt 00:08:54]} 15. Bh4 {[%clk 00:42:31]} {[%emt 00:02:36]}
Qc5 {[%clk 00:46:46]} {[%emt 00:18:21]} 16. g4 {[%clk 00:35:55]} {[%emt
00:07:07]} Bxg4 {[%clk 00:42:38]} {[%emt 00:04:38]} 17. Ngxe4 {[%clk 00:33:01]}
{[%emt 00:03:24]} Nxe4 {[%clk 00:42:22]} {[%emt 00:00:46]} 18. Nxe4 {[%clk
00:33:12]} {[%emt 00:00:20]} Qf5 {[%clk 00:41:11]} {[%emt 00:01:39]} 19. Bxg4
{[%clk 00:33:37]} {[%emt 00:00:06]} 1-0

[Event "Kvibergspelen 2022"]
[Site "Kviberg Park Hotel & Conference, Krutvagen 2, Gothenburg, Sweden"]
[Date "2022.10.01"]
[Round "6.15"]
[White "Strom-Engdahl, Alexander"]
[Black "Cibo, Faris"]
[Result "1-0"]
[TimeControl "15 minutes + 5 seconds per move from move one (Round 1 - 4) / 90 minutes + 30 seconds per move from move one (Round 5 - 8)"]
[WhiteFideId "1741586"]
[BlackFideId "1764268"]
[WhiteElo "2114"]
[BlackElo "1750"]

1. d4 {[%clk 01:30:55]} {[%emt 00:00:04]} Nf6 {[%clk 01:30:50]} {[%emt
00:00:11]} 2. Bf4 {[%clk 01:31:17]} {[%emt 00:00:08]} g6 {[%clk 01:31:07]}
{[%emt 00:00:14]} 3. Nc3 {[%clk 01:31:39]} {[%emt 00:00:08]} d5 {[%clk
01:31:32]} {[%emt 00:00:05]} 4. Qd2 {[%clk 01:31:31]} {[%emt 00:00:38]} Bg7
{[%clk 01:31:36]} {[%emt 00:00:25]} 5. O-O-O {[%clk 01:31:13]} {[%emt
00:00:48]} Bf5 {[%clk 01:30:16]} {[%emt 00:01:50]} 6. f3 {[%clk 01:31:25]}
{[%emt 00:00:18]} h5 {[%clk 01:30:34]} {[%emt 00:00:12]} 7. h4 {[%clk
01:29:23]} {[%emt 00:02:32]} c6 {[%clk 01:30:17]} {[%emt 00:00:47]} 8. Nh3
{[%clk 01:29:06]} {[%emt 00:00:47]} Qa5 {[%clk 01:26:58]} {[%emt 00:03:49]} 9.
Kb1 {[%clk 01:29:12]} {[%emt 00:00:23]} Nfd7 {[%clk 01:25:03]} {[%emt
00:02:24]} 10. e4 {[%clk 01:27:04]} {[%emt 00:02:39]} Bxh3 {[%clk 01:21:12]}
{[%emt 00:04:22]} 11. Rxh3 {[%clk 01:26:44]} {[%emt 00:00:50]} e5 {[%clk
01:21:37]} {[%emt 00:00:06]} 12. dxe5 {[%clk 01:25:55]} {[%emt 00:01:19]} Nxe5
{[%clk 01:21:59]} {[%emt 00:00:06]} 13. exd5 {[%clk 01:25:24]} {[%emt
00:01:01]} O-O {[%clk 01:22:12]} {[%emt 00:00:17]} 14. Ne4 {[%clk 01:19:30]}
{[%emt 00:06:24]} Qxd5 {[%clk 01:20:40]} {[%emt 00:02:03]} 15. Qxd5 {[%clk
01:19:28]} {[%emt 00:00:32]} cxd5 {[%clk 01:21:04]} {[%emt 00:00:06]} 16. Rxd5
{[%clk 01:19:50]} {[%emt 00:00:08]} Nbc6 {[%clk 01:21:27]} {[%emt 00:00:06]} 17.
Rh1 {[%clk 01:16:24]} {[%emt 00:03:56]} Rfd8 {[%clk 01:21:25]} {[%emt
00:00:32]} 18. Rxd8+ {[%clk 01:15:56]} {[%emt 00:00:59]} Rxd8 {[%clk 01:21:46]}
{[%emt 00:00:08]} 19. Be2 {[%clk 01:16:19]} {[%emt 00:00:06]} Rb8 {[%clk
01:17:56]} {[%emt 00:04:20]} 20. Rd1 {[%clk 01:16:24]} {[%emt 00:00:25]} b5
{[%clk 01:18:07]} {[%emt 00:00:19]} 21. Rd6 {[%clk 01:13:49]} {[%emt 00:03:07]}
a5 {[%clk 01:17:12]} {[%emt 00:01:24]} 22. Rxc6 {[%clk 01:13:42]} {[%emt
00:00:38]} Nxc6 {[%clk 01:16:06]} {[%emt 00:01:35]} 1-0

[Event "Kvibergspelen 2022"]
[Site "Kviberg Park Hotel & Conference, Krutvagen 2, Gothenburg, Sweden"]
[Date "2022.10.01"]
[Round "6.16"]
[White "Morell, Oscar"]
[Black "Burwick, Malte"]
[Result "0-1"]
[TimeControl "15 minutes + 5 seconds per move from move one (Round 1 - 4) / 90 minutes + 30 seconds per move from move one (Round 5 - 8)"]
[WhiteFideId "1752952"]
[BlackFideId "1702475"]
[WhiteElo "1833"]
[BlackElo "2225"]

1. e4 {[%clk 01:30:55]} {[%emt 00:00:03]} d5 {[%clk 01:25:22]} {[%emt
00:05:39]} 2. exd5 {[%clk 01:31:10]} {[%emt 00:00:15]} Qxd5 {[%clk 01:25:46]}
{[%emt 00:00:06]} 3. Nc3 {[%clk 01:31:33]} {[%emt 00:00:07]} Qd6 {[%clk
01:26:10]} {[%emt 00:00:06]} 4. d4 {[%clk 01:30:52]} {[%emt 00:01:10]} Nf6
{[%clk 01:26:26]} {[%emt 00:00:15]} 5. Be3 {[%clk 01:27:07]} {[%emt 00:04:13]}
a6 {[%clk 01:22:37]} {[%emt 00:04:20]} 6. h3 {[%clk 01:23:35]} {[%emt
00:04:02]} g6 {[%clk 01:14:21]} {[%emt 00:08:46]} 7. Nf3 {[%clk 01:22:52]}
{[%emt 00:01:12]} b5 {[%clk 01:11:32]} {[%emt 00:03:20]} 8. Bd3 {[%clk
01:14:57]} {[%emt 00:08:24]} Bb7 {[%clk 01:11:09]} {[%emt 00:00:54]} 9. Qd2
{[%clk 01:12:53]} {[%emt 00:02:34]} Nbd7 {[%clk 01:06:19]} {[%emt 00:05:20]} 10.
O-O-O {[%clk 00:59:29]} {[%emt 00:13:54]} Nb6 {[%clk 00:50:46]} {[%emt
00:16:04]} 11. Bf4 {[%clk 00:48:46]} {[%emt 00:11:12]} Qd8 {[%clk 00:50:01]}
{[%emt 00:01:16]} 12. Rhe1 {[%clk 00:41:38]} {[%emt 00:07:37]} Bg7 {[%clk
00:48:17]} {[%emt 00:02:15]} 13. Ne4 {[%clk 00:27:15]} {[%emt 00:14:53]} O-O
{[%clk 00:41:00]} {[%emt 00:07:46]} 14. Nxf6+ {[%clk 00:21:20]} {[%emt
00:06:23]} exf6 {[%clk 00:41:15]} {[%emt 00:00:18]} 15. Be4 {[%clk 00:21:09]}
{[%emt 00:00:40]} Bxe4 {[%clk 00:41:07]} {[%emt 00:00:39]} 16. Rxe4 {[%clk
00:21:37]} {[%emt 00:00:02]} Qd5 {[%clk 00:41:25]} {[%emt 00:00:12]} 17. Qd3
{[%clk 00:06:59]} {[%emt 00:15:08]} Qxa2 {[%clk 00:41:24]} {[%emt 00:00:31]} 18.
Qa3 {[%clk 00:02:42]} {[%emt 00:04:46]} Qxa3 {[%clk 00:37:50]} {[%emt
00:04:05]} 19. bxa3 {[%clk 00:03:10]} {[%emt 00:00:02]} Nd5 {[%clk 00:37:49]}
{[%emt 00:00:30]} 20. Bd2 {[%clk 00:03:04]} {[%emt 00:00:35]} a5 {[%clk
00:38:04]} {[%emt 00:00:17]} 21. g4 {[%clk 00:01:54]} {[%emt 00:01:39]} Rfb8
{[%clk 00:37:12]} {[%emt 00:01:22]} 22. Kb2 {[%clk 00:01:12]} {[%emt 00:01:11]}
Bf8 {[%clk 00:26:29]} {[%emt 00:11:14]} 23. Nh4 {[%clk 00:00:48]} {[%emt
00:00:54]} Nb6 {[%clk 00:26:20]} {[%emt 00:00:39]} 0-1

[Event "Kvibergspelen 2022"]
[Site "Kviberg Park Hotel & Conference, Krutvagen 2, Gothenburg, Sweden"]
[Date "2022.10.01"]
[Round "6.17"]
[White "Johannesson, Oliver"]
[Black "Kashwan, Hassan"]
[Result "1-0"]
[TimeControl "15 minutes + 5 seconds per move from move one (Round 1 - 4) / 90 minutes + 30 seconds per move from move one (Round 5 - 8)"]
[WhiteTitle "FM"]
[WhiteFideId "2305623"]
[BlackFideId "137122555"]
[WhiteElo "2205"]
[BlackElo "1902"]

1. d4 {[%emt 00:15:20]} Nf6 {[%clk 01:15:11]} {[%emt 00:00:30]} 2. c4 {[%clk
01:31:21]} {[%emt 00:00:08]} g6 {[%clk 01:14:20]} {[%emt 00:01:20]} 3. Nc3
{[%clk 01:31:46]} {[%emt 00:00:06]} Bg7 {[%clk 01:14:42]} {[%emt 00:00:08]} 4.
Nf3 {[%clk 01:32:10]} {[%emt 00:00:06]} d6 {[%clk 01:13:09]} {[%emt 00:02:04]}
5. Bg5 {[%clk 01:32:34]} {[%emt 00:00:06]} O-O {[%clk 01:07:46]} {[%emt
00:05:52]} 6. e3 {[%clk 01:33:01]} {[%emt 00:00:04]} c5 {[%clk 01:06:26]}
{[%emt 00:01:49]} 7. d5 {[%clk 01:33:26]} {[%emt 00:00:05]} Bg4 {[%clk
01:05:16]} {[%emt 00:01:40]} 8. Be2 {[%clk 01:33:43]} {[%emt 00:00:13]} Nbd7
{[%clk 01:05:10]} {[%emt 00:00:36]} 9. O-O {[%clk 01:33:33]} {[%emt 00:00:40]}
a6 {[%clk 01:05:09]} {[%emt 00:00:31]} 10. a4 {[%clk 01:33:46]} {[%emt
00:00:17]} h6 {[%clk 01:04:48]} {[%emt 00:00:50]} 11. Bh4 {[%clk 01:34:00]}
{[%emt 00:00:17]} Rb8 {[%clk 00:57:21]} {[%emt 00:07:57]} 12. Nd2 {[%clk
01:32:10]} {[%emt 00:02:19]} Bxe2 {[%clk 00:57:13]} {[%emt 00:00:38]} 13. Qxe2
{[%clk 01:32:31]} {[%emt 00:00:10]} Re8 {[%clk 00:54:51]} {[%emt 00:02:52]} 14.
e4 {[%clk 01:28:07]} {[%emt 00:04:54]} Qc7 {[%clk 00:50:40]} {[%emt 00:04:40]}
15. f4 {[%clk 01:26:47]} {[%emt 00:01:50]} Nf8 {[%clk 00:46:30]} {[%emt
00:04:40]} 16. Rae1 {[%clk 01:24:36]} {[%emt 00:02:41]} Qd7 {[%clk 00:37:06]}
{[%emt 00:09:56]} 17. e5 {[%clk 01:22:56]} {[%emt 00:02:09]} N6h7 {[%clk
00:35:35]} {[%emt 00:01:59]} 18. e6 {[%clk 01:20:36]} {[%emt 00:02:50]} fxe6
{[%clk 00:35:37]} {[%emt 00:00:29]} 19. dxe6 {[%clk 01:20:58]} {[%emt
00:00:09]} Qc6 {[%clk 00:35:31]} {[%emt 00:00:35]} 20. Nd5 {[%clk 01:20:10]}
{[%emt 00:01:18]} Nf6 {[%clk 00:35:00]} {[%emt 00:01:01]} 21. Bxf6 {[%clk
01:19:15]} {[%emt 00:01:26]} exf6 {[%clk 00:31:01]} {[%emt 00:04:29]} 22. e7
{[%clk 01:17:34]} {[%emt 00:02:10]} Nd7 {[%clk 00:28:36]} {[%emt 00:02:54]} 23.
Qe6+ {[%clk 01:17:36]} {[%emt 00:00:29]} Kh7 {[%clk 00:26:09]} {[%emt
00:02:57]} 24. Ne4 {[%clk 01:17:19]} {[%emt 00:00:45]} Qxa4 {[%clk 00:13:29]}
{[%emt 00:13:11]} 25. Qxd7 {[%clk 01:14:47]} {[%emt 00:03:02]} Qxd7 {[%clk
00:11:57]} {[%emt 00:02:02]} 26. Nexf6+ {[%clk 01:15:07]} {[%emt 00:00:10]} Kh8
{[%clk 00:10:15]} {[%emt 00:02:13]} 27. Nxd7 {[%clk 01:15:29]} {[%emt
00:00:07]} Bd4+ {[%clk 00:10:05]} {[%emt 00:00:39]} 28. Kh1 {[%clk 01:15:53]}
{[%emt 00:00:06]} Rbc8 {[%clk 00:09:31]} {[%emt 00:01:04]} 29. N7f6 {[%clk
01:16:13]} {[%emt 00:00:10]} Bxf6 {[%clk 00:09:24]} {[%emt 00:00:37]} 30. Nxf6
{[%clk 01:16:38]} {[%emt 00:00:05]} Kg7 {[%clk 00:09:00]} {[%emt 00:00:53]} 31.
Nxe8+ {[%clk 01:17:02]} {[%emt 00:00:06]} Rxe8 {[%clk 00:09:29]} {[%emt
00:00:02]} 32. f5 {[%clk 01:17:21]} {[%emt 00:00:11]} b5 {[%clk 00:09:30]}
{[%emt 00:00:29]} 33. cxb5 {[%clk 01:17:35]} {[%emt 00:00:16]} axb5 {[%clk
00:09:32]} {[%emt 00:00:28]} 34. fxg6 {[%clk 01:17:55]} {[%emt 00:00:09]} c4
{[%clk 00:08:44]} {[%emt 00:01:19]} 35. Rf7+ {[%clk 01:18:20]} {[%emt
00:00:05]} b4 {[%clk 00:08:32]} {[%emt 00:00:41]} 1-0

[Event "Kvibergspelen 2022"]
[Site "Kviberg Park Hotel & Conference, Krutvagen 2, Gothenburg, Sweden"]
[Date "2022.10.01"]
[Round "6.18"]
[White "Salholm, Soren"]
[Black "Nygren, David"]
[Result "0-1"]
[TimeControl "15 minutes + 5 seconds per move from move one (Round 1 - 4) / 90 minutes + 30 seconds per move from move one (Round 5 - 8)"]
[WhiteFideId "1722824"]
[BlackFideId "1704761"]
[WhiteElo "1901"]
[BlackElo "2165"]

1. e4 {[%clk 01:30:31]} {[%emt 00:00:28]} e6 {[%clk 01:30:32]} {[%emt
00:00:29]} 2. d4 {[%clk 01:30:22]} {[%emt 00:00:41]} d5 {[%clk 01:30:56]}
{[%emt 00:00:04]} 3. Nd2 {[%clk 01:30:39]} {[%emt 00:00:13]} c5 {[%clk
01:31:00]} {[%emt 00:00:26]} 4. dxc5 {[%clk 01:29:09]} {[%emt 00:01:55]} Bxc5
{[%clk 01:30:09]} {[%emt 00:01:26]} 5. exd5 {[%clk 01:25:12]} {[%emt 00:04:27]}
exd5 {[%clk 01:29:00]} {[%emt 00:01:38]} 6. Ngf3 {[%clk 01:24:13]} {[%emt
00:01:28]} Nc6 {[%clk 01:25:41]} {[%emt 00:03:50]} 7. Nb3 {[%clk 01:22:20]}
{[%emt 00:02:21]} Bb6 {[%clk 01:24:22]} {[%emt 00:01:51]} 8. Be2 {[%clk
01:20:01]} {[%emt 00:02:49]} Nf6 {[%clk 01:23:41]} {[%emt 00:01:12]} 9. O-O
{[%clk 01:18:03]} {[%emt 00:02:27]} h6 {[%clk 01:23:46]} {[%emt 00:00:26]} 10.
c3 {[%clk 01:14:57]} {[%emt 00:03:35]} O-O {[%clk 01:20:52]} {[%emt 00:03:19]}
11. h3 {[%clk 01:09:58]} {[%emt 00:05:34]} Qd6 {[%clk 01:17:55]} {[%emt
00:03:28]} 12. Nbd4 {[%clk 01:04:58]} {[%emt 00:05:30]} a6 {[%clk 01:15:44]}
{[%emt 00:02:42]} 13. Be3 {[%clk 00:51:33]} {[%emt 00:13:53]} Bc7 {[%clk
01:14:53]} {[%emt 00:01:22]} 14. Qd3 {[%clk 00:40:11]} {[%emt 00:11:46]} Ne4
{[%clk 01:10:20]} {[%emt 00:05:08]} 15. Rad1 {[%clk 00:34:37]} {[%emt
00:06:04]} Qg6 {[%clk 01:07:35]} {[%emt 00:03:15]} 16. Nh4 {[%clk 00:30:09]}
{[%emt 00:04:57]} Qf6 {[%clk 01:05:46]} {[%emt 00:02:19]} 17. Ndf3 {[%clk
00:27:21]} {[%emt 00:03:19]} Be6 {[%clk 01:03:51]} {[%emt 00:02:26]} 18. g4
{[%clk 00:25:48]} {[%emt 00:02:03]} Ne5 {[%clk 00:58:08]} 19. Qc2 {[%clk
00:21:29]} {[%emt 00:11:00]} Rad8 {[%clk 00:49:47]} 20. c4 {[%clk 00:14:14]}
{[%emt 00:16:38]} Rc8 {[%clk 00:47:28]} 21. Bd4 {[%clk 00:09:29]} {[%emt
00:08:04]} Nxf3+ {[%clk 00:46:07]} {[%emt 00:01:51]} 22. Nxf3 {[%clk 00:09:28]}
{[%emt 00:00:30]} Qg6 {[%clk 00:45:51]} {[%emt 00:00:46]} 23. Nh4 {[%clk
00:08:30]} {[%emt 00:01:25]} Qg5 {[%clk 00:46:11]} {[%emt 00:00:13]} 24. Nf3
{[%clk 00:08:48]} {[%emt 00:00:12]} Qe7 {[%clk 00:46:23]} {[%emt 00:00:18]} 25.
Bd3 {[%emt 00:00:54]} f5 {[%clk 00:45:56]} {[%emt 00:00:55]} 26. Bxe4 {[%clk
00:05:48]} {[%emt 00:03:08]} dxe4 {[%clk 00:43:56]} {[%emt 00:02:30]} 27. Ne5
{[%clk 00:05:43]} {[%emt 00:00:34]} Qh4 {[%clk 00:42:41]} {[%emt 00:01:45]} 28.
f4 {[%clk 00:02:35]} {[%emt 00:03:38]} Bxe5 {[%clk 00:40:54]} {[%emt 00:02:17]}
29. Bxe5 {[%clk 00:02:30]} {[%emt 00:00:35]} Qxh3 {[%clk 00:37:50]} {[%emt
00:03:35]} 30. gxf5 {[%clk 00:01:58]} {[%emt 00:01:02]} Bxf5 {[%clk 00:33:05]}
{[%emt 00:05:15]} 31. Qg2 {[%clk 00:00:41]} {[%emt 00:01:48]} Qxg2+ {[%clk
00:32:37]} {[%emt 00:00:57]} 32. Kxg2 {[%clk 00:01:07]} {[%emt 00:00:03]} Rxc4
{[%clk 00:32:59]} {[%emt 00:00:09]} 33. Kg3 {[%clk 00:00:55]} {[%emt 00:00:42]}
Rc6 {[%clk 00:32:08]} {[%emt 00:01:22]} 34. Kf2 {[%clk 00:00:49]} {[%emt
00:00:35]} Rfc8 {[%clk 00:29:34]} {[%emt 00:03:04]} 35. Rg1 {[%clk 00:00:50]}
{[%emt 00:00:29]} g6 {[%clk 00:29:43]} {[%emt 00:00:21]} 0-1